bitfinex/quotes_BTCUSD_20220213
["timestamp","ask_amount","ask_price","bid_price","bid_amount"]
[1644796505257,0.27390756,42263.0,42262.0,0.46564051]
[1644796506160,0.27390756,42263.0,42262.0,0.40646651]
[1644796506562,0.168347,42264.0,42262.0,0.40646651]
[1644796507360,0.118347,42264.0,42262.0,0.40646651]
[1644796507568,0.059174,42264.0,42262.0,0.78371796]
[1644796507762,0.059174,42264.0,42262.0,0.57230183]
[1644796507963,0.059174,42264.0,42263.0,0.25141369]
[1644796508404,0.00045409,42265.0,42263.0,0.49180447]
[1644796508606,0.0007106,42265.0,42264.0,0.2587105]
[1644796508806,0.00045409,42265.0,42264.0,0.059165]
[1644796509008,0.00025651,42268.0,42264.0,0.11832503]
[1644796509207,0.00045408,42267.0,42264.0,0.31690717]
[1644796509608,0.00071059,42267.0,42264.0,0.31690717]
[1644796509807,0.00071059,42267.0,42265.0,0.0475]
[1644796510007,0.00071059,42267.0,42265.0,0.106659]
[1644796510212,0.00025651,42267.0,42265.0,0.156659]
[1644796510414,0.05987058,42268.0,42265.0,0.156659]
[1644796510609,0.00025651,42267.0,42265.0,0.0975]
[1644796511210,0.11878207,42268.0,42265.0,0.0475]
[1644796511211,0.36512496,42268.0,42265.0,0.0475]
[1644796511412,0.12491377,42267.0,42262.0,0.35646651]
[1644796511611,0.28840611,42266.0,42262.0,0.35646651]
[1644796511809,0.28866262,42266.0,42262.0,0.35646651]
[1644796512450,0.28866262,42266.0,42262.0,0.40646651]
[1644796512653,0.28321,42263.0,42262.0,0.40646651]
[1644796514551,0.55058147,42263.0,42262.0,0.40646651]
[1644796515153,0.28321,42263.0,42262.0,0.40646651]
[1644796517206,0.05943551,42264.0,42262.0,0.40646651]
[1644796517606,0.059179,42264.0,42262.0,0.40646651]
[1644796517806,0.05943551,42264.0,42262.0,0.40646651]
[1644796519413,0.05943551,42264.0,42262.0,0.46563951]
[1644796519653,0.05943551,42264.0,42262.0,0.40646651]
[1644796519852,0.059179,42264.0,42262.0,0.40646651]
[1644796520454,0.32514128,42264.0,42262.0,0.40646651]
[1644796520656,0.059179,42264.0,42262.0,0.40646651]
[1644796524102,0.059179,42264.0,42262.0,0.40593054]
[1644796527568,0.1296776,42264.0,42262.0,0.40593054]
[1644796528670,0.059179,42264.0,42262.0,0.40593054]
[1644796529066,0.28009455,42263.0,42262.0,0.40593054]
[1644796531404,0.14082861,42264.0,42262.0,0.40593054]
[1644796531805,0.26727165,42263.0,42262.0,0.40593054]
[1644796532205,0.14082861,42264.0,42262.0,0.40593054]
[1644796533605,0.059179,42264.0,42262.0,0.40593054]
[1644796535059,0.059179,42264.0,42262.0,0.35646651]
[1644796535262,0.118364,42264.0,42262.0,0.35646651]
[1644796535462,0.118364,42264.0,42251.0,0.0475]
[1644796535463,0.39446487,42264.0,42251.0,0.0475]
[1644796535667,0.40256384,42257.0,42253.0,0.00045422]
[1644796535866,0.382484,42254.0,42253.0,0.00045422]
[1644796536062,0.0706052,42244.0,42242.0,0.00541583]
[1644796536266,0.14147657,42244.0,42242.0,0.00541583]
[1644796536465,0.3966349,42244.0,42242.0,0.00541583]
[1644796536862,0.5058429,42244.0,42242.0,0.00541583]
[1644796538064,0.26912256,42243.0,42242.0,0.00541583]
[1644796538305,0.5058429,42244.0,42242.0,0.00541583]
[1644796538306,0.109208,42244.0,42242.0,0.00541583]
[1644796538507,0.059208,42244.0,42242.0,0.00541583]
[1644796539407,0.24792523,42243.0,42242.0,0.00541583]
[1644796540207,0.059208,42244.0,42242.0,0.00541583]
[1644796540707,0.32731528,42244.0,42242.0,0.00541583]
[1644796541309,0.23333424,42243.0,42242.0,0.00541583]
[1644796542159,0.23333424,42243.0,42241.0,0.04066083]
[1644796542560,0.23333424,42243.0,42241.0,0.04020713]
[1644796543059,0.059208,42244.0,42241.0,0.04020713]
[1644796544058,0.059208,42244.0,42242.0,0.28043138]
[1644796545256,0.059208,42244.0,42241.0,0.09986083]
[1644796546304,0.059208,42244.0,42241.0,0.09940713]
[1644796548208,0.059208,42244.0,42241.0,0.15860257]
[1644796550165,0.3,42255.0,42241.0,0.15860257]
[1644796550367,0.3,42255.0,42247.0,0.29454401]
[1644796550564,0.00045352,42257.0,42248.0,0.0475]
[1644796551168,0.059177,42258.0,42250.0,0.00045363]
[1644796551364,0.00045356,42257.0,42250.0,0.04795363]
[1644796551566,0.00045356,42257.0,42251.0,0.15]
[1644796551764,0.00045356,42257.0,42250.0,0.09795363]
[1644796551962,0.00045356,42257.0,42252.0,0.05]
[1644796552363,0.1183576,42258.0,42251.0,0.20045363]
[1644796552564,0.05918293,42255.0,42252.0,0.05]
[1644796553405,0.05918293,42255.0,42252.0,0.159183]
[1644796556010,0.05918293,42255.0,42252.0,0.309183]
[1644796556211,0.05918293,42255.0,42252.0,0.159183]
[1644796557954,0.05918293,42255.0,42252.0,0.1]
[1644796558174,0.05918293,42255.0,42244.0,0.43410204]
[1644796558175,0.632484,42254.0,42241.0,0.1]
[1644796558361,0.23736877,42242.0,42237.0,0.5]
[1644796558557,0.23736877,42242.0,42238.0,0.5]
[1644796558558,0.3795083,42242.0,42238.0,0.5]
[1644796558758,0.3795083,42242.0,42236.0,0.00018387]
[1644796558957,0.3795083,42242.0,42235.0,0.04]
[1644796559155,0.26392945,42238.0,42235.0,0.04]
[1644796559456,0.32314342,42238.0,42235.0,0.04]
[1644796559860,0.38235742,42238.0,42235.0,0.04]
[1644796560055,0.37593175,42238.0,42235.0,0.04]
[1644796560455,0.65163716,42238.0,42235.0,0.04]
[1644796561104,0.65163716,42238.0,42235.0,0.04018387]
[1644796562102,0.65163716,42238.0,42235.0,0.04]
[1644796562303,0.65163716,42238.0,42235.0,0.04018387]
[1644796563105,0.1120023,42238.0,42235.0,0.04018387]
[1644796563305,0.05921397,42238.0,42235.0,0.04]
[1644796563706,0.05921397,42238.0,42235.0,0.04018387]
[1644796564559,0.05921397,42238.0,42235.0,0.04]
[1644796564953,0.27837528,42237.0,42235.0,0.04018387]
[1644796565356,0.35897204,42237.0,42235.0,0.04018387]
[1644796565555,0.2927732,42236.0,42235.0,0.04018387]
[1644796565755,0.2927732,42236.0,42235.0,0.04]
[1644796565954,0.2927732,42236.0,42235.0,0.04018387]
[1644796566953,0.2927732,42236.0,42235.0,0.04]
[1644796571803,0.2927732,42236.0,42235.0,0.04018387]
[1644796572352,0.05921397,42238.0,42235.0,0.04]
[1644796573156,0.05921397,42238.0,42235.0,0.04018387]
[1644796574154,0.11843297,42238.0,42235.0,0.04]
[1644796574353,0.11843297,42238.0,42235.0,0.04018387]
[1644796575455,0.11843297,42238.0,42235.0,0.04]
[1644796575660,0.11843297,42238.0,42235.0,0.04018387]
[1644796576105,0.17765297,42238.0,42235.0,0.04018387]
[1644796576307,0.11843297,42238.0,42235.0,0.04018387]
[1644796576506,0.11843297,42238.0,42235.0,0.04]
[1644796576707,0.11843297,42238.0,42235.0,0.04018387]
[1644796577407,0.17765197,42238.0,42235.0,0.04018387]
[1644796577806,0.17765197,42238.0,42235.0,0.04]
[1644796578008,0.17765197,42238.0,42235.0,0.04018387]
[1644796578608,0.20940517,42236.0,42235.0,0.04018387]
[1644796578809,0.26862717,42236.0,42235.0,0.04018387]
[1644796579007,0.26862717,42236.0,42235.0,0.04]
[1644796579208,0.059222,42236.0,42235.0,0.04018387]
[1644796579653,0.17765397,42238.0,42235.0,0.04018387]
[1644796579856,0.17765197,42238.0,42235.0,0.04018387]
[1644796580052,0.17765197,42238.0,42235.0,0.04]
[1644796580355,0.17765197,42238.0,42235.0,0.04018387]
[1644796581252,0.17765197,42238.0,42235.0,0.04]
[1644796581451,0.17765197,42238.0,42235.0,0.04018387]
[1644796581452,0.11843297,42238.0,42235.0,0.04018387]
[1644796581654,0.05921397,42238.0,42235.0,0.04018387]
[1644796582252,0.05600113,42238.0,42235.0,0.04018387]
[1644796582453,0.05600113,42238.0,42235.0,0.04]
[1644796582652,0.05600113,42238.0,42235.0,0.04018387]
[1644796583706,0.05600113,42238.0,42235.0,0.04]
[1644796583909,0.05600113,42238.0,42235.0,0.04018387]
[1644796584906,0.05600113,42238.0,42235.0,0.04]
[1644796585107,0.05600113,42238.0,42235.0,0.04018387]
[1644796585707,0.11521813,42238.0,42235.0,0.04018387]
[1644796586112,0.11521813,42238.0,42235.0,0.04]
[1644796586307,0.11521813,42238.0,42235.0,0.04018387]
[1644796587056,0.17443913,42238.0,42235.0,0.04018387]
[1644796587458,0.059219,42237.0,42235.0,0.04]
[1644796587760,0.059219,42237.0,42235.0,0.04018387]
[1644796588762,0.059219,42237.0,42235.0,0.04]
[1644796588957,0.059219,42237.0,42235.0,0.04018387]
[1644796589859,0.059219,42237.0,42235.0,0.04]
[1644796590058,0.059219,42237.0,42235.0,0.04018387]
[1644796590258,0.46393169,42239.0,42235.0,0.04018387]
[1644796590459,0.34548669,42239.0,42235.0,0.04018387]
[1644796590903,0.34548669,42239.0,42235.0,0.04063703]
[1644796591105,0.059217,42238.0,42235.0,0.04045316]
[1644796591311,0.52313162,42239.0,42238.0,0.118434]
[1644796591507,0.46391462,42239.0,42238.0,0.118434]
[1644796592808,0.52313462,42239.0,42238.0,0.118434]
[1644796602261,0.21842793,42239.0,42238.0,0.118434]
[1644796602463,0.21842793,42239.0,42238.0,0.068434]
[1644796602659,0.11842793,42239.0,42238.0,0.068434]
[1644796604062,0.11842793,42239.0,42238.0,0.29886944]
[1644796604661,0.11842793,42239.0,42238.0,0.068434]
[1644796614309,0.38567097,42239.0,42238.0,0.068434]
[1644796614713,0.48567097,42239.0,42238.0,0.068434]
[1644796620265,0.62199271,42239.0,42238.0,0.068434]
[1644796620469,0.48567097,42239.0,42238.0,0.068434]
[1644796620665,0.62199271,42239.0,42238.0,0.068434]
[1644796621310,0.67199271,42239.0,42238.0,0.068434]
[1644796623214,0.6,42238.0,42236.0,0.00018387]
[1644796623415,0.31528944,42237.0,42236.0,0.00045256]
[1644796623616,0.31528944,42237.0,42236.0,0.00063643]
[1644796623814,0.41528944,42237.0,42236.0,0.00063643]
[1644796624416,0.41528944,42237.0,42236.0,0.00018387]
[1644796624660,0.32196404,42236.0,42235.0,0.04]
[1644796624860,0.59041316,42236.0,42235.0,0.04018387]
[1644796625066,0.85938737,42236.0,42235.0,0.04018387]
[1644796625863,0.85938737,42236.0,42235.0,0.04]
[1644796627067,0.9455078,42236.0,42235.0,0.04]
[1644796628910,0.9455078,42236.0,42235.0,0.035]
[1644796630415,0.67653359,42236.0,42235.0,0.035]
[1644796630616,0.70774135,42236.0,42235.0,0.035]
[1644796630816,0.58118866,42236.0,42235.0,0.035]
[1644796631017,0.44041316,42236.0,42235.0,0.035]
[1644796631815,0.44041316,42236.0,42235.0,0.03518387]
[1644796632259,0.44041316,42236.0,42235.0,0.035]
[1644796632768,0.59041316,42236.0,42235.0,0.035]
[1644796635163,0.59041316,42236.0,42231.0,0.0011]
[1644796635368,0.118468,42235.0,42234.0,0.00018665]
[1644796635564,0.17770116,42235.0,42233.0,0.00045259]
[1644796635808,0.31847522,42235.0,42233.0,0.00045259]
[1644796636012,0.17770116,42235.0,42233.0,0.00045259]
[1644796636210,0.27770116,42235.0,42233.0,0.00045259]
[1644796636411,0.27770116,42235.0,42232.0,0.00018665]
[1644796636710,0.27770116,42235.0,42232.0,0.0004526]
[1644796636711,0.46096324,42233.0,42232.0,0.0004526]
[1644796636911,0.56096324,42233.0,42232.0,0.00063925]
[1644796637711,0.61096324,42233.0,42232.0,0.00018665]
[1644796637915,0.61096324,42233.0,42231.0,0.0011]
[1644796638112,0.61096324,42233.0,42231.0,0.00128665]
[1644796638713,0.56096324,42233.0,42231.0,0.00128665]
[1644796638915,0.56096324,42233.0,42231.0,0.0011]
[1644796639112,0.56096324,42233.0,42231.0,0.00128665]
[1644796640184,0.56096324,42233.0,42231.0,0.0011]
[1644796640380,0.56096324,42233.0,42231.0,0.00128665]
[1644796640879,0.61096324,42233.0,42231.0,0.00128665]
[1644796641084,0.61096324,42233.0,42231.0,0.00018665]
[1644796641281,0.61096324,42233.0,42227.0,0.00018665]
[1644796641282,0.1184745,42231.0,42227.0,0.00018665]
[1644796641482,0.1184745,42231.0,42230.0,0.00045261]
[1644796642083,0.1184745,42231.0,42227.0,0.00018665]
[1644796642084,1.2984585,42231.0,42227.0,0.00018665]
[1644796642285,1.2984585,42231.0,42226.0,0.00128665]
[1644796642286,0.332484,42227.0,42226.0,0.00128665]
[1644796642483,0.682484,42226.0,42222.0,0.0311]
[1644796642783,0.879984,42226.0,42222.0,0.0311]
[1644796642983,0.332484,42225.0,42222.0,0.0311]
[1644796643187,0.25153475,42224.0,42222.0,0.0311]
[1644796643420,0.83885344,42224.0,42222.0,0.0311]
[1644796643620,0.15,42223.0,42222.0,0.0311]
[1644796643819,0.2,42223.0,42220.0,0.0011]
[1644796644019,0.05925361,42222.0,42213.0,0.1136]
[1644796644218,0.05925361,42222.0,42213.0,0.0011]
[1644796644219,0.059255,42220.0,42213.0,0.0011]
[1644796644420,0.27214095,42216.0,42213.0,0.0011]
[1644796644621,0.24075706,42216.0,42213.0,0.0011]
[1644796646121,0.24075706,42216.0,42213.0,0.00154982]
[1644796647163,0.24075706,42216.0,42213.0,0.0011]
[1644796647365,0.24075706,42216.0,42213.0,0.00154982]
[1644796647769,0.0592557,42217.0,42213.0,0.00154982]
[1644796648368,0.0592557,42217.0,42213.0,0.0011]
[1644796648567,0.0592557,42217.0,42214.0,0.00044981]
[1644796648964,0.37398215,42217.0,42214.0,0.00044981]
[1644796649565,0.37398215,42217.0,42209.0,0.0022]
[1644796649566,0.05924493,42216.0,42209.0,0.0022]
[1644796649765,0.05924493,42216.0,42214.0,0.00044981]
[1644796650919,0.05924493,42216.0,42209.0,0.0022]
[1644796651113,0.059247,42215.0,42212.0,0.00030837]
[1644796651414,0.11849418,42215.0,42212.0,0.00030837]
[1644796652015,0.11849418,42215.0,42210.0,0.31587999]
[1644796652215,0.11849418,42215.0,42211.0,0.00030837]
[1644796653216,0.11849418,42215.0,42210.0,0.31587999]
[1644796653420,0.11849418,42215.0,42211.0,0.00044984]
[1644796654316,0.2418023,42213.0,42211.0,0.00044984]
[1644796654564,0.05925092,42213.0,42211.0,0.00040844]
[1644796655461,0.11850392,42213.0,42211.0,0.00040844]
[1644796655660,0.059251,42212.0,42209.0,0.0022]
[1644796655862,0.11850357,42212.0,42210.0,0.00040845]
[1644796656165,0.29629638,42211.0,42210.0,0.00040845]
[1644796656760,0.29629638,42211.0,42209.0,0.0022]
[1644796656962,0.2268647,42210.0,42209.0,0.0022]
[1644796657561,0.4922663,42210.0,42209.0,0.0022]
[1644796657962,0.4922663,42210.0,42209.0,0.00238577]
[1644796658167,0.2268647,42210.0,42209.0,0.0022]
[1644796658424,0.49232868,42210.0,42209.0,0.0022]
[1644796658827,0.2268647,42210.0,42209.0,0.0022]
[1644796664766,0.49130018,42210.0,42209.0,0.0022]
[1644796667313,0.59130018,42210.0,42209.0,0.0022]
[1644796667713,0.59130018,42210.0,42209.0,0.0011]
[1644796668317,0.63880018,42210.0,42209.0,0.0011]
[1644796669577,0.71854195,42209.0,42206.0,0.0011]
[1644796669766,0.166048,42208.0,42206.0,0.0011]
[1644796669966,0.166048,42208.0,42195.0,0.1158]
[1644796670368,0.166048,42208.0,42205.0,0.00044887]
[1644796670567,0.32569517,42207.0,42205.0,0.00044887]
[1644796670767,0.256775,42206.0,42205.0,0.00044887]
[1644796671271,0.256775,42206.0,42195.0,0.1158]
[1644796671272,0.6,42205.0,42195.0,0.1158]
[1644796671471,0.6475,42205.0,42203.0,0.00264888]
[1644796671674,1.06236212,42205.0,42203.0,0.00264888]
[1644796671868,0.11855586,42204.0,42197.0,0.00179578]
[1644796672072,0.059278,42203.0,42197.0,0.00179578]
[1644796672469,0.059278,42203.0,42195.0,0.0011]
[1644796672969,0.20745022,42199.0,42195.0,0.0011]
[1644796673169,0.45993237,42198.0,42195.0,0.0011]
[1644796674419,0.51921037,42198.0,42195.0,0.0011]
[1644796674621,0.21746455,42199.0,42195.0,0.0011]
[1644796674824,0.07066242,42198.0,42195.0,0.0011]
[1644796675018,0.07066242,42198.0,42195.0,0.00154894]
[1644796675219,0.18922005,42198.0,42195.0,0.00154894]
[1644796675418,0.26350747,42197.0,42195.0,0.00154894]
[1644796676020,0.26350747,42197.0,42195.0,0.0011]
[1644796677280,0.24849805,42198.0,42195.0,0.0011]
[1644796677481,0.24829805,42198.0,42195.0,0.0011]
[1644796677680,0.17763563,42198.0,42195.0,0.0011]
[1644796677882,0.11835663,42198.0,42195.0,0.0011]
[1644796678081,0.05927863,42198.0,42195.0,0.0011]
[1644796678680,0.05927863,42198.0,42195.0,0.00154894]
[1644796679081,0.05927863,42198.0,42195.0,0.29175659]
[1644796679484,0.11854663,42198.0,42195.0,0.29175659]
[1644796679683,0.05927863,42198.0,42196.0,0.27092567]
[1644796680483,0.11854663,42198.0,42196.0,0.27092567]
[1644796683021,0.11854663,42198.0,42196.0,0.0011]
[1644796683422,0.17782684,42197.0,42196.0,0.0011]
[1644796684863,0.17782684,42197.0,42196.0,0.00128488]
[1644796685863,0.51410324,42197.0,42196.0,0.00128488]
[1644796686266,0.74821446,42197.0,42196.0,0.00128488]
[1644796687371,0.17782684,42197.0,42196.0,0.00128488]
[1644796689217,0.17782684,42197.0,42192.0,0.0011]
[1644796689418,0.059275,42196.0,42194.0,0.00044859]
[1644796689819,0.08116039,42195.0,42194.0,0.00044859]
[1644796690420,0.08116039,42195.0,42193.0,0.00018489]
[1644796690618,0.37299599,42194.0,42192.0,0.00159184]
[1644796691220,0.43227599,42194.0,42192.0,0.00159184]
[1644796691620,0.43227599,42194.0,42192.0,0.00128489]
[1644796692071,0.43227599,42194.0,42192.0,0.0011]
[1644796693066,0.43227599,42194.0,42187.0,0.3143987]
[1644796693268,0.17784566,42191.0,42186.0,0.001]
[1644796693471,0.29640966,42191.0,42186.0,0.001]
[1644796693678,0.29640966,42191.0,42177.0,0.20164278]
[1644796693679,0.15,42189.0,42177.0,0.20164278]
[1644796693877,0.379984,42190.0,42172.0,0.0022]
[1644796693878,0.15,42183.0,42172.0,0.0022]
[1644796694075,0.679984,42188.0,42172.0,0.0022]
[1644796694076,0.729984,42182.0,42172.0,0.0022]
[1644796694275,0.332484,42180.0,42172.0,0.0022]
[1644796694473,0.059312,42176.0,42175.0,0.00179268]
[1644796694673,0.059312,42176.0,42172.0,0.0022]
[1644796694870,0.0475,42175.0,42172.0,0.0022]
[1644796695071,0.0475,42174.0,42172.0,0.0022]
[1644796695471,0.0475,42174.0,42171.0,0.0111]
[1644796695673,0.10679788,42174.0,42171.0,0.0083]
[1644796697118,0.05929788,42174.0,42171.0,0.0083]
[1644796698118,0.11859988,42174.0,42171.0,0.0083]
[1644796698433,0.11859988,42174.0,42153.0,0.20274278]
[1644796698434,0.15,42164.0,42153.0,0.20274278]
[1644796698629,0.05933242,42169.0,42153.0,0.0011]
[1644796698630,0.118677,42162.0,42153.0,0.0011]
[1644796698820,0.15,42158.0,42153.0,0.0011]
[1644796699017,0.15,42158.0,42156.0,0.00044713]
[1644796699219,0.15,42157.0,42156.0,0.00044713]
[1644796699418,0.96572435,42157.0,42151.0,0.0111]
[1644796699674,0.13545,42155.0,42152.0,0.0001712]
[1644796700072,0.13545,42155.0,42152.0,0.0003424]
[1644796700478,0.13545,42155.0,42150.0,0.00239398]
[1644796700672,0.47803759,42154.0,42150.0,0.00239398]
[1644796700872,0.47803759,42154.0,42149.0,0.001]
[1644796700873,0.57803759,42154.0,42149.0,0.001]
[1644796701075,0.518693,42154.0,42142.0,0.0011795]
[1644796701474,0.22788303,42148.0,42142.0,0.0011795]
[1644796701676,0.38186124,42149.0,42142.0,0.0011795]
[1644796701874,0.48186124,42149.0,42142.0,0.0011795]
[1644796703315,0.11870353,42143.0,42141.0,0.0083795]
[1644796703516,0.16487679,42149.0,42147.0,0.02542793]
[1644796703918,0.28272239,42148.0,42147.0,0.02542793]
[1644796704317,0.65859053,42147.0,42141.0,0.0083795]
[1644796704525,0.2387048,42144.0,42141.0,0.0083795]
[1644796704717,0.24790818,42142.0,42141.0,0.0083795]
[1644796704917,0.25859053,42147.0,42141.0,0.00856347]
[1644796705333,0.25859053,42147.0,42140.0,0.00159003]
[1644796705334,0.25859053,42147.0,42123.0,0.0011826]
[1644796705335,0.13545,42135.0,42123.0,0.0011826]
[1644796705527,0.13545,42131.0,42124.0,0.00015272]
[1644796705726,0.04289,42130.0,42124.0,0.00015272]
[1644796706119,0.04289,42130.0,42125.0,0.2858818]
[1644796706320,0.08990362,42128.0,42124.0,0.00015272]
[1644796706720,0.059381,42126.0,42115.0,0.03775956]
[1644796706919,0.11376189,42125.0,42117.0,0.0999]
[1644796707369,0.3,42124.0,42117.0,0.0999]
[1644796707567,0.0475,42123.0,42117.0,0.0999]
[1644796707967,0.11376189,42125.0,42117.0,0.0999]
[1644796708370,0.59441338,42124.0,42117.0,0.0999]
[1644796708768,0.26856029,42124.0,42119.0,0.00044408]
[1644796709168,0.21376189,42125.0,42119.0,0.00044408]
[1644796709368,0.08008369,42120.0,42119.0,0.00044408]
[1644796709567,0.05937918,42120.0,42119.0,0.00044408]
[1644796709767,0.05937918,42120.0,42119.0,0.00030544]
[1644796711211,0.24313366,42120.0,42119.0,0.00030544]
[1644796711615,1.254,42118.0,42102.0,0.001207]
[1644796711821,1.254,42118.0,42098.0,0.00273176]
[1644796711822,0.01264588,42104.0,42103.0,0.00122176]
[1644796712021,0.01264588,42104.0,42098.0,0.00273176]
[1644796712022,0.332484,42101.0,42098.0,0.00273176]
[1644796712216,0.01264588,42099.0,42098.0,0.00273176]
[1644796712415,0.3,42099.0,42098.0,0.00273176]
[1644796712613,0.36324213,42100.0,42098.0,0.00273176]
[1644796712816,0.46324213,42100.0,42098.0,0.00273176]
[1644796713115,0.78429254,42100.0,42098.0,0.00273176]
[1644796713315,0.3,42099.0,42096.0,0.00100486]
[1644796713522,0.3,42099.0,42097.0,0.00051044]
[1644796713718,0.00572588,42098.0,42097.0,0.00051044]
[1644796713918,0.58913433,42100.0,42097.0,0.00051044]
[1644796714118,0.13230966,42101.0,42097.0,0.00051044]
[1644796714119,0.059419,42101.0,42097.0,0.00051044]
[1644796714324,0.05941908,42102.0,42097.0,0.00051044]
[1644796714574,0.05941908,42102.0,42097.0,0.0002144]
[1644796714767,0.05941908,42102.0,42097.0,0.00049067]
[1644796715381,0.05939826,42106.0,42097.0,0.00049067]
[1644796715571,0.11879781,42109.0,42097.0,0.00049067]
[1644796715572,0.3,42108.0,42097.0,0.00049067]
[1644796715773,0.21859081,42109.0,42099.0,0.08943023]
[1644796715968,0.21859081,42109.0,42099.0,0.08985178]
[1644796716175,0.3,42111.0,42101.0,0.25080076]
[1644796716574,0.00042141,42113.0,42101.0,0.22580076]
[1644796716772,0.00042141,42113.0,42102.0,0.0001]
[1644796716974,0.3801,42116.0,42102.0,0.0001]
[1644796717173,0.24995228,42112.0,42102.0,0.0001]
[1644796717572,0.08824359,42106.0,42100.0,0.0001]
[1644796718424,0.3801,42116.0,42100.0,0.0001]
[1644796718425,0.3,42118.0,42105.0,0.04320881]
[1644796718621,0.3,42119.0,42111.0,0.04320881]
[1644796718825,0.3,42125.0,42112.0,0.0475]
[1644796719018,0.3,42125.0,42113.0,0.0475]
[1644796719220,0.2314275,42124.0,42113.0,0.0475]
[1644796719421,0.08671723,42118.0,42113.0,0.0475]
[1644796719819,0.3,42120.0,42113.0,0.0475]
[1644796720023,0.00044115,42121.0,42115.0,0.04320881]
[1644796720221,0.00044115,42121.0,42116.0,0.05439085]
[1644796720619,0.3,42131.0,42116.0,0.10439085]
[1644796720818,0.00044116,42121.0,42116.0,0.10457392]
[1644796721018,0.00044116,42121.0,42116.0,0.05457392]
[1644796721019,0.07423461,42121.0,42116.0,0.05457392]
[1644796721428,0.07423461,42121.0,42116.0,0.0475]
[1644796721821,0.06302582,42112.0,42111.0,0.0475]
[1644796722264,0.05938258,42119.0,42111.0,0.04278309]
[1644796722682,0.05938258,42119.0,42096.0,0.1]
[1644796722683,0.12487511,42112.0,42096.0,0.1]
[1644796722870,0.00679119,42099.0,42095.0,0.00044143]
[1644796723066,1.254,42109.0,42093.0,0.0011843]
[1644796723067,0.3475,42108.0,42093.0,0.0011843]
[1644796723265,0.3475,42108.0,42094.0,0.2944638]
[1644796723266,0.059413,42101.0,42094.0,0.2944638]
[1644796723465,0.4475,42108.0,42105.0,0.49684885]
[1644796723466,0.1,42108.0,42105.0,0.49684885]
[1644796723667,0.23634198,42107.0,42105.0,0.49684885]
[1644796724071,0.332484,42106.0,42105.0,0.49684885]
[1644796724271,0.64684,42105.0,42094.0,0.0011893]
[1644796724469,1.6515,42104.0,42095.0,0.00029174]
[1644796724666,1.6515,42104.0,42097.0,0.0008576]
[1644796724667,0.12487511,42099.0,42097.0,0.0008576]
[1644796724869,0.0475,42098.0,42097.0,0.0008576]
[1644796725269,0.0594087,42100.0,42097.0,0.0008576]
[1644796726316,0.12487511,42099.0,42097.0,0.0008576]
[1644796726521,0.3,42099.0,42097.0,0.0008576]
[1644796726722,0.30679119,42098.0,42097.0,0.0008576]
[1644796726919,0.10679119,42098.0,42097.0,0.0008576]
[1644796727517,0.40679119,42098.0,42097.0,0.0008576]
[1644796728316,1.66079119,42098.0,42097.0,0.0008576]
[1644796728518,1.36079119,42098.0,42097.0,0.0008576]
[1644796730362,1.36079119,42098.0,42091.0,0.00809414]
[1644796730563,0.05942864,42090.0,42084.0,0.00100304]
[1644796731365,0.05942864,42090.0,42085.0,0.29533601]
[1644796731564,0.05942864,42090.0,42085.0,0.29043601]
[1644796732366,0.05942864,42090.0,42085.0,0.28543601]
[1644796733167,0.05942864,42090.0,42085.0,0.33543601]
[1644796733419,0.05941169,42095.0,42085.0,0.33543601]
[1644796733615,0.05941169,42095.0,42085.0,0.38543601]
[1644796733815,0.06789186,42099.0,42085.0,0.38543601]
[1644796734017,0.35452712,42100.0,42093.0,0.34326734]
[1644796734415,0.18050378,42102.0,42093.0,0.34326734]
[1644796734621,0.1680088,42105.0,42093.0,0.39326734]
[1644796735014,0.00679119,42107.0,42093.0,0.39326734]
[1644796735015,0.10679119,42107.0,42093.0,0.39326734]
[1644796735215,0.08500114,42105.0,42093.0,0.39326734]
[1644796735517,0.29556928,42103.0,42093.0,0.39326734]
[1644796735718,0.29556928,42103.0,42093.0,0.34326734]
[1644796736116,1.74723682,42096.0,42093.0,0.34326734]
[1644796736517,0.29556928,42103.0,42093.0,0.34326734]
[1644796736718,0.30236047,42103.0,42093.0,0.34326734]
[1644796736918,0.30236047,42103.0,42094.0,0.0001]
[1644796736919,0.40236047,42103.0,42094.0,0.0001]
[1644796737176,0.40236047,42103.0,42086.0,0.0001]
[1644796737177,0.19816077,42100.0,42086.0,0.0001]
[1644796737370,0.0594109,42096.0,42085.0,0.0001]
[1644796737673,0.27531463,42095.0,42084.0,0.34320304]
[1644796737971,0.34372111,42098.0,42086.0,0.18981796]
[1644796738170,0.34372111,42098.0,42087.0,0.32550607]
[1644796738171,0.08961798,42093.0,42087.0,0.32550607]
[1644796738367,0.08961798,42093.0,42087.0,0.00018076]
[1644796738571,0.08961798,42093.0,42086.0,0.05]
[1644796738572,0.26926063,42093.0,42086.0,0.05]
[1644796738772,0.26926063,42093.0,42088.0,0.0004376]
[1644796738773,0.27283183,42092.0,42088.0,0.0004376]
[1644796739171,0.27283183,42092.0,42081.0,0.00912878]
[1644796739371,0.29179179,42092.0,42090.0,0.0582]
[1644796739579,0.29179179,42092.0,42066.0,0.0011]
[1644796739580,0.11808392,42086.0,42066.0,0.0011]
[1644796739783,0.65,42091.0,42066.0,0.0011]
[1644796739784,0.00679119,42078.0,42066.0,0.0011]
[1644796739973,0.00679119,42076.0,42066.0,0.0011]
[1644796740274,0.3,42081.0,42066.0,0.0011]
[1644796740275,0.35246511,42079.0,42066.0,0.0011]
[1644796740474,0.35246511,42079.0,42071.0,0.26094747]
[1644796740475,0.3,42078.0,42071.0,0.26094747]
[1644796740674,0.05944029,42076.0,42071.0,0.26094747]
[1644796740921,0.05944029,42076.0,42068.0,0.23057392]
[1644796741522,0.05944029,42076.0,42068.0,0.01400175]
[1644796741822,0.05944932,42074.0,42068.0,0.32108972]
[1644796742023,0.05944932,42074.0,42068.0,0.01400175]
[1644796742239,0.1189154,42071.0,42064.0,0.0005672]
[1644796742438,0.0868379,42065.0,42062.0,0.0002958]
[1644796742626,0.0868379,42065.0,42063.0,0.0011344]
[1644796742627,0.21171301,42065.0,42063.0,0.0011344]
[1644796742827,1.254,42069.0,42063.0,0.0011344]
[1644796743026,0.05947692,42067.0,42063.0,0.0011344]
[1644796743224,0.05947692,42067.0,42063.0,0.0012344]
[1644796743424,0.11808392,42074.0,42063.0,0.0012344]
[1644796743425,0.1,42075.0,42063.0,0.0012344]
[1644796743625,0.1,42075.0,42063.0,0.00166928]
[1644796743825,0.1,42075.0,42065.0,0.19657033]
[1644796744025,0.05944656,42073.0,42066.0,0.0001]